Cogmind - Beta 16 @@@ ROGUE MODE // 2025.11.21 @ 21:35:07 // Winter2019/RPGLIKE Player: Jaegerpls Result: Destroyed by X-77 Beamer with Gatling Laser Performance ------------- Evolutions (6) 3000 Regions Visited (26) 5200 Robots Destroyed (600) 3000 Value Destroyed (27567) 27567 Prototype IDs (59) 1180 Alien Tech Used (2) 400 Bonus (7744) 7744 TOTAL SCORE: 48091 Bonus ------- High Alert Combat Kills 3833 Follower Combat Kills 924 Entered DSFs 500 Network Hubs Disabled 800 Aligned with FarCom 300 Met Imprinter 300 Acquired ECA 300 Met Zhirov 300 Built Enhanced Grunts 300 Met R17 at Cetus 500 Friendly Fire -313 Cogmind --------- Core Integrity 0/950 Matter 290/300 Energy 84/1770 System Corruption 22% Temperature Cool (66) Movement Rolling (115) Ox1 Location -4/Hub_04(d) Parts ------- > --- POWER (3) -------- Light Angular Momentum Engine Light Angular Momentum Engine Light Antimatter Reactor > --- PROPULSION (4) --- Armored Huge Wheel Armored Huge Wheel > --- UTILITY (13) ----- Experimental Heat Sink Superbattery (fused) Advanced Signal Interpreter Long-range Terrain Scanner Advanced Targeting Computer Advanced Targeting Computer Armor Integrity Analyzer Advanced Particle Charger Improved Weapon Cycler Makeshift Transmission Jammer Advanced Focal Shield Improved Force Field Advanced System Restoration Module > --- WEAPON (5) ------- Thermic Laser Thermic Laser Thermic Laser (fused) Thermic Laser Quantum Rifle > --- INVENTORY (3) ---- Advanced Coolant Injector Encrypted Comm Array Peak State ------------ > --- POWER ------------ Light Angular Momentum Engine Light Angular Momentum Engine Light Antimatter Reactor > --- PROPULSION ------- Armored Huge Wheel Armored Huge Wheel > --- UTILITY ---------- Experimental Heat Sink Superbattery Advanced Signal Interpreter Long-range Terrain Scanner Advanced Targeting Computer Advanced Targeting Computer Armor Integrity Analyzer Advanced Particle Charger Improved Weapon Cycler Makeshift Transmission Jammer Advanced Focal Shield Improved Force Field Advanced System Restoration Module > --- WEAPON ----------- Thermic Laser Thermic Laser Thermic Laser Thermic Laser Quantum Rifle > --- INVENTORY -------- Advanced Coolant Injector Encrypted Comm Array [Rating: 139] Favorites ----------- Power Light Angular Momentum Engine Engine Light Angular Momentum Engine Power Core Nuclear Core Reactor Light Antimatter Reactor Propulsion Compact Wheel Treads Armored Treads Wheel Compact Wheel Hover Unit Aerolev Unit Utility Advanced Targeting Computer Device Improved Particle Charger Storage Superbattery Processor Advanced Targeting Computer Hackware Improved System Shield Protection Experimental Power Shielding Weapon Thermic Laser Energy Gun Thermic Laser Energy Cannon Phase Cannon Ballistic Gun Minigun Special Weapon Molecular Deconstructor Build | -11 -10 -10 -9 -9 -9 -8 -8 -7 -7 -6 -6 -6 -6 -5 -5 -5 -5 -5 -5 -5 -4 -4 -4 -4 -4 -4 ------- Run | Yrd Mat Min Mat Min Exi Min Mat Fac DSF Fac Low Low Zio Pro Fac Was Fac Upp Upp Zhi Pro Fac Ext Cet Arc Hub Slots Evolved 21 | 4 3 1 5 . . 1 2 . . 2 . . . . 1 . . . . . 1 . . . . 1 Power 2 | . 1 . 1 . . . . . . . . . . . . . . . . . . . . . . . Propulsion 3 | 1 . . 1 . . . 1 . . . . . . . . . . . . . . . . . . . Utility 12 | 1 1 1 2 . . 1 1 . . 2 . . . . 1 . . . . . 1 . . . . 1 Weapon 4 | 2 1 . 1 . . . . . . . . . . . . . . . . . . . . . . . Parts Attached 140 | 7 12 7 19 . 1 5 20 . 6 21 1 . 1 1 5 1 6 1 1 2 4 13 2 1 . 3 Power 15 | 1 1 3 4 . . 1 . . . 1 . . . . . . 1 . . 1 . 1 1 . . . Engine 9 | 1 1 1 3 . . 1 . . . 1 . . . . . . 1 . . . . . . . . . Core 4 | . . 2 1 . . . . . . . . . . . . . . . . . . . 1 . . . Reactor 2 | . . . . . . . . . . . . . . . . . . . . 1 . 1 . . . . Propulsion 27 | 2 2 1 3 . . 1 6 . 4 4 . . . . . . . . . . . 4 . . . . Treads 13 | . . 1 2 . . 1 5 . 4 . . . . . . . . . . . . . . . . . Leg . | . . . . . . . . . . . . . . . . . . . . . . . . . . . Wheel 13 | 2 2 . 1 . . . . . . 4 . . . . . . . . . . . 4 . . . . Hover 1 | . . . . . . . 1 . . . . . . . . . . . . . . . . . . . Flight . | . . . . . . . . . . . . . . . . . . . . . . . . . . . Utility 60 | 1 4 3 3 . 1 1 7 . 1 10 1 . 1 . 5 1 4 . 1 1 4 8 . . . 3 Device 40 | 1 2 2 1 . . 1 3 . 1 7 1 . . . 4 1 4 . . . 4 5 . . . 3 Storage 2 | . 1 . . . 1 . . . . . . . . . . . . . . . . . . . . . Processor 14 | . . 1 2 . . . 4 . . 2 . . 1 . 1 . . . 1 . . 2 . . . . Hackware 3 | . 1 . . . . . . . . 1 . . . . . . . . . . . 1 . . . . Protection 1 | . . . . . . . . . . . . . . . . . . . . 1 . . . . . . Artifact . | . . . . . . . . . . . . . . . . . . . . . . . . . . . Weapon 38 | 3 5 . 9 . . 2 7 . 1 6 . . . 1 . . 1 1 . . . . 1 1 . . Energy Gun 31 | 3 5 . 8 . . 2 4 . 1 5 . . . 1 . . 1 . . . . . . 1 . . Energy Cannon 2 | . . . 1 . . . . . . 1 . . . . . . . . . . . . . . . . Ballistic Gun 3 | . . . . . . . 3 . . . . . . . . . . . . . . . . . . . Ballistic Cannon . | . . . . . . . . . . . . . . . . . . . . . . . . . . . Launcher . | . . . . . . . . . . . . . . . . . . . . . . . . . . . Special Weapon 2 | . . . . . . . . . . . . . . . . . . 1 . . . . 1 . . . Impact Weapon . | . . . . . . . . . . . . . . . . . . . . . . . . . . . Slashing Weapon . | . . . . . . . . . . . . . . . . . . . . . . . . . . . Piercing Weapon . | . . . . . . . . . . . . . . . . . . . . . . . . . . . Special Melee Weapon . | . . . . . . . . . . . . . . . . . . . . . . . . . . . Unidentified Prototypes 18 | . . . 3 . . . 2 . . 1 . . . . . . 4 1 . 4 . 2 . 1 . . Parts Lost . | . . . . . . . . . . . . . . . . . . . . . . . . . . . Power . | . . . . . . . . . . . . . . . . . . . . . . . . . . . Propulsion . | . . . . . . . . . . . . . . . . . . . . . . . . . . . Utility . | . . . . . . . . . . . . . . . . . . . . . . . . . . . Weapon . | . . . . . . . . . . . . . . . . . . . . . . . . . . . Highest Loss Streak . | . . . . . . . . . . . . . . . . . . . . . . . . . . . To Critical Strikes . | . . . . . . . . . . . . . . . . . . . . . . . . . . . Average Backups 1 | . . . 1 1 1 . 1 2 1 1 2 2 2 2 1 1 2 2 3 3 2 1 2 3 3 2 Power . | . . . . . . . . . . . . . . . . . . . . . . . . . . . Propulsion . | . . . . . . . . . . . . . . . . . . . . . . . . . . . Utility 1 | . . . . 1 1 . 1 2 1 1 1 1 1 1 . . 1 2 2 2 1 . 1 2 2 1 Weapon . | . . . . . . . . . . . . . . . . . . . . . . . . . . . Tool/Special . | . . . . . . . . . . . . . . . . . . . . . . . . . . . Unused Backups 8 | . . . . . . . . 1 1 1 . . . . 1 2 . . . . . 1 . . . 1 Power . | . . . . . . . . . . . . . . . . . . . . . . . . . . . Propulsion . | . . . . . . . . . . . . . . . . . . . . . . . . . . . Utility 7 | . . . . . . . . 1 1 1 . . . . . 2 . . . . . 1 . . . 1 Weapon 1 | . . . . . . . . . . . . . . . 1 . . . . . . . . . . . Tool/Special . | . . . . . . . . . . . . . . . . . . . . . . . . . . . Average Slot Usage (%) 98 | . 98 99 99 100 100 100 99 100 100 98 99 100 100 100 99 100 99 100 100 98 100 95 91 90 91 90 Engine 12 | . 15 7 12 11 11 12 14 15 15 13 13 13 13 13 13 13 12 13 13 12 12 8 7 8 8 7 Core 1 | . . 8 7 5 5 3 . . . . . . . . . . . . . . . . . . . . Treads 4 | . . 2 12 17 17 16 20 20 20 8 . . . . . . . . . . . . . . . . Wheel 11 | . 21 14 1 . . . . . . 9 18 18 18 18 17 17 17 17 17 17 16 11 8 8 8 8 Device 23 | . 19 18 20 17 17 21 20 20 20 19 21 22 22 22 25 26 26 26 26 24 28 30 29 29 29 29 Storage 3 | . 2 . . . 2 5 5 5 5 4 4 4 4 4 4 4 4 4 4 4 4 4 4 4 4 4 Processor 13 | . . 4 7 11 11 11 10 15 15 18 13 13 13 13 15 17 17 17 17 17 16 13 16 16 16 16 Hackware 1 | . 3 8 6 5 2 . . . . . 4 4 4 4 . . . . . . . . . . . . Energy Gun 23 | . 35 33 28 29 29 27 25 25 25 22 22 22 22 22 21 21 20 21 21 21 20 19 20 19 20 19 Peak Build Rating 139 | 9 21 30 50 50 57 63 76 76 82 96 94 94 94 98 105 104 106 111 103 106 110 130 129 127 127 139 Average Rating 87 | 6 16 25 44 50 53 60 71 76 78 89 93 94 93 95 102 103 103 102 102 102 107 119 126 126 127 130 On Entrance 82 | . 9 21 30 50 50 57 63 76 76 82 92 94 94 94 97 104 103 103 103 103 103 110 127 127 127 127 Avg Prop Armor Cover (%) 7 | . . 8 8 . . . 2 . . . . . . . . . . . . . . . . . . . Naked Turns . | . . . . . . . . . . . . . . . . . . . . . . . . . . . Heaviest Build 87 | 12 24 29 48 48 52 58 58 58 59 68 65 65 65 67 68 68 68 68 68 68 78 84 84 84 84 87 Greatest Support 117 | 32 32 27 67 67 67 67 87 85 117 117 69 69 69 69 69 69 69 69 69 69 69 69 61 61 61 61 Greatest Overweight (x) 3 | . 1 1 2 . . . . . . 3 . . . . . . . . . . 1 2 1 1 1 1 Average Overweight (x) . | . . . . . . . . . . . . . . . . . . . . . . 1 1 1 1 1 Largest Inventory Capacity 3 | 1 1 1 1 1 1 1 2 2 2 2 2 2 2 2 2 2 3 3 3 3 3 3 3 3 3 3 Average Capacity 2 | 1 1 1 1 1 1 1 1 2 2 2 2 2 2 2 2 2 2 3 3 3 3 3 3 3 3 3 Most Carried 3 | . 1 1 1 1 1 1 2 2 2 2 2 2 2 2 2 2 3 3 3 3 3 3 3 3 3 3 Average Carried 1 | . . . . 1 1 . 1 1 1 1 2 2 2 2 1 1 2 2 3 3 2 2 2 3 3 2 Final Capacity 3 | 1 1 1 1 1 1 1 2 2 2 2 2 2 2 2 2 2 3 3 3 3 3 3 3 3 3 3 Final Carried 3 | . 1 1 1 1 1 . 2 2 2 2 2 2 2 2 2 2 3 3 3 3 2 3 3 3 3 2 Class Distribution -------------------- 52% | Hacker-Gunner 29% | Scavenger-Gunner 6% | Hacker-Skirmisher 5% | Commander-Gunner 3% | Scavenger-Skirmisher Dominant Class ---------------- Scavenger-Skirmisher | -10/Materials Scavenger-Gunner | -10/Mines Scavenger-Gunner | -9/Materials Scavenger-Gunner | -9/Mines Scavenger-Gunner | -9/Exiles Scavenger-Gunner | -8/Mines Scavenger-Gunner | -8/Materials Scavenger-Gunner | -7/Factory Scavenger-Gunner | -7/DSF Scavenger-Gunner | -6/Factory Hacker-Gunner | -6/Lower Caves Hacker-Gunner | -6/Lower Caves Hacker-Gunner | -6/Zion Hacker-Gunner | -5/Proximity Caves Hacker-Skirmisher | -5/Factory Scavenger-Skirmisher | -5/Waste Hacker-Gunner | -5/Factory Hacker-Gunner | -5/Upper Caves Hacker-Gunner | -5/Upper Caves Hacker-Gunner | -5/Zhirov Hacker-Gunner | -4/Proximity Caves Hacker-Gunner | -4/Factory Commander-Gunner | -4/Extension Commander-Gunner | -4/Cetus Commander-Gunner | -4/Archives Hacker-Gunner | -4/Hub_04(d) Resources | -11 -10 -10 -9 -9 -9 -8 -8 -7 -7 -6 -6 -6 -6 -5 -5 -5 -5 -5 -5 -5 -4 -4 -4 -4 -4 -4 ----------- Run | Yrd Mat Min Mat Min Exi Min Mat Fac DSF Fac Low Low Zio Pro Fac Was Fac Upp Upp Zhi Pro Fac Ext Cet Arc Hub Matter Collected 3544 | 270 150 80 345 15 . 198 336 . 50 170 170 60 . 130 108 . 662 60 40 . 190 320 60 20 20 90 Remotely . | . . . . . . . . . . . . . . . . . . . . . . . . . . . Salvage Created 28552 | 101 708 358 1729 118 . 683 2108 89 481 2360 865 100 . 283 1358 1201 4293 610 683 . 1062 3482 2882 582 117 2299 Parts 1000 | 7 45 22 133 10 . 25 89 5 41 73 33 5 . 27 47 17 114 27 16 . 25 92 62 14 1 70 Haulers Intercepted 33 | . 1 . 6 . . . 6 . . 6 . . . . 1 . 8 . . . . 5 . . . . Recyclers Shooed 6 | . 2 . 2 . . 1 . . . . . . . . . . 1 . . . . . . . . . Parts Field Recycled . | . . . . . . . . . . . . . . . . . . . . . . . . . . . Retrieved Matter . | . . . . . . . . . . . . . . . . . . . . . . . . . . . Parts Self-Destructed 127 | . . . . . . . . . . . 33 2 . 26 . . . 30 11 . 25 . . . . . Prevented 1 | . . . . . . . . . . . . . . . . . . 1 . . . . . . . . Parts Restored . | . . . . . . . . . . . . . . . . . . . . . . . . . . . Kills | -11 -10 -10 -9 -9 -9 -8 -8 -7 -7 -6 -6 -6 -6 -5 -5 -5 -5 -5 -5 -5 -4 -4 -4 -4 -4 -4 ------- Run | Yrd Mat Min Mat Min Exi Min Mat Fac DSF Fac Low Low Zio Pro Fac Was Fac Upp Upp Zhi Pro Fac Ext Cet Arc Hub Combat Hostiles Destroyed 442 | . 16 14 38 5 . 16 29 . 11 31 22 1 . 16 24 6 53 15 17 . 16 46 34 8 1 23 Guns 326 | . 15 14 34 5 . 16 28 . 10 22 17 1 . 13 13 3 35 14 11 . 9 28 21 3 1 13 AOE 1 | . . . 1 . . . . . . . . . . . . . . . . . . . . . . . Classes Destroyed 22 | 2 7 1 2 . . 2 1 . 1 1 . . . 1 1 1 . 1 1 . . . . . . . Worker 18 | . 1 . 9 . . . 2 . . 2 . . . . . . 1 . . . . 1 . . . 2 Builder 27 | . 1 . 4 . . 1 3 1 . 5 . . . . . . 1 . . . . 2 1 . . 8 Tunneler 6 | 2 . 1 . . . . 1 . . . . . . . . . 1 . . . . 1 . . . . Hauler 33 | . 1 . 6 . . . 6 . . 6 . . . . 1 . 8 . . . . 5 . . . . Recycler 18 | 1 1 . 2 . . . 4 1 . 1 . . . . 1 . 2 . . . . 1 1 . . 3 Operator 15 | . 1 . 3 . . . 1 . . 1 . . . . 4 . 1 . . . . 2 1 . . 1 Drone 4 | . . . . . . . . . . . . . . 2 . . . . . . 2 . . . . . Watcher 41 | . 3 . 5 . . . 5 . . 4 . . . . 1 . 6 . . . . 10 2 2 . 3 Swarmer 69 | . 3 3 9 3 . 3 3 . . 6 9 . . 9 . . 3 9 4 . . 5 . . . . Grunt 175 | . 13 6 18 2 . 10 14 . 6 7 10 . . 3 10 . 19 . 7 . 5 13 22 . . 10 Brawler 10 | . . . . . . 2 1 . . 1 . . . . 1 . 1 . . . 3 . . . . 1 Duelist 7 | . . . 1 . . . 1 . . 1 . . . . 1 . . . 1 . 1 1 . . . . Sentry 70 | . . . 10 . . . 8 . . 6 3 . . 2 4 . 9 1 . . 3 7 9 . 2 6 Specialist 12 | . . . . . . . . . 3 2 . . . . . . 2 1 . . . 2 . . . 2 Hunter 16 | . . . . . . 1 1 . 1 2 . . . . 1 . 4 1 . . . 4 . . . 1 Programmer 42 | . . . . . . . . . . 5 . 1 . . 6 . 12 2 . . 1 12 . . . 3 Heavy 9 | . . . . . . . 1 . 1 1 . . . . . . 3 . . . . 2 . . . 1 Behemoth 6 | . . . . . . . . . . . . . . . 1 . . . 1 . 1 . 2 . . 1 Compactor 6 | . . . . . . . . . . . . . . . . 6 . . . . . . . . . . Cetus Guard 8 | . . . . . . . . . . . . . . . . . . . . . . . . 8 . . Samaritan 1 | . . . . . . . . . . . . . . . . . . . 1 . . . . . . . Assembled 5 | . . 5 . . . . . . . . . . . . . . . . . . . . . . . . Thug 2 | . . . . . . . . . . . . . . . . . . . 1 . . . 1 . . . Savage 4 | . . . . . . . . . . . . 1 . . . . . . 3 . . . . . . . Butcher 1 | . . . . . . . . . . . . . . . . . . . . . . . 1 . . . Mutant 1 | . . . . . . . . . . . . . . . . . . 1 . . . . . . . . Best Kill Streak 11 | 3 5 4 9 3 . 3 6 2 4 9 10 1 . 4 9 3 11 9 4 . 6 8 5 5 1 9 Combat Bots Only 11 | . 3 4 6 3 . 3 4 . 4 6 10 1 . 4 9 3 11 9 4 . 6 7 5 4 1 7 Max Kills in Single Turn 8 | 1 2 2 3 1 . 3 2 2 2 2 3 1 . 2 1 1 2 2 1 . 1 2 2 1 1 8 Gunslinging 2 | . 1 1 2 . . 2 1 . 1 1 2 . . 1 . . 1 1 . . . . 1 . . 1 Exploded 1 | . . . 1 . . . . . . . . . . . . . . . . . . . . . . . Melee . | . . . . . . . . . . . . . . . . . . . . . . . . . . . Uniques/NPCs Destroyed . | . . . . . . . . . . . . . . . . . . . . . . . . . . . Combat | -11 -10 -10 -9 -9 -9 -8 -8 -7 -7 -6 -6 -6 -6 -5 -5 -5 -5 -5 -5 -5 -4 -4 -4 -4 -4 -4 -------- Run | Yrd Mat Min Mat Min Exi Min Mat Fac DSF Fac Low Low Zio Pro Fac Was Fac Upp Upp Zhi Pro Fac Ext Cet Arc Hub Hostile Shots Fired 1035 | . 44 62 88 2 . 29 35 . 35 106 47 4 . 26 43 . 83 26 38 . 25 86 93 16 . 147 Missed 310 | . 12 13 23 . . 11 11 . 8 32 11 1 . 6 17 . 27 8 7 . 7 31 35 3 . 47 Hits 725 | . 32 49 65 2 . 18 24 . 27 74 36 3 . 20 26 . 56 18 31 . 18 55 58 13 . 100 Melee 14 | . . 10 . . . . . . . . . . . . . . . . 3 . 1 . . . . . Projectile 711 | . 32 39 65 2 . 18 24 . 27 74 36 3 . 20 26 . 56 18 28 . 17 55 58 13 . 100 AOE 5 | . . 3 . . . . . . . . . . . . . . . . . . . . 2 . . . Critical Strikes 45 | . 1 2 1 . . . 1 . 3 3 . . . . 1 . 6 1 2 . . 7 1 4 . 12 Part Disruptions 1 | . . . . . . . . . . . . . . . . . . . . . . 1 . . . . Damage Taken 9737 | . 468 883 820 13 . 243 411 . 418 654 542 38 . 248 221 . 849 145 324 . 229 585 727 218 . 1701 Core 7797 | . 389 743 663 9 . 194 322 . 333 513 431 31 . 200 181 . 685 117 254 . 186 457 572 171 . 1346 Absorbed by Shields 5381 | . . . . . . 34 145 . 153 377 99 8 . 144 229 . 878 152 332 . 239 616 761 226 . 988 Redirected to Core 6500 | . 249 496 526 9 . 164 305 . 292 428 389 23 . 153 143 . 558 79 234 . 145 408 498 159 . 1242 Ignored by Resistances 22 | . . . . . . . . . . . . . . . . . . . . . . . . . . 22 Core Remaining (%) 87 | 100 . 18 . . . 91 100 . 100 . . . . 100 . . . . . . 100 . . . . . Volleys Fired 1079 | 6 116 27 147 7 . 23 117 2 19 112 21 2 1 16 46 13 99 18 27 . 25 109 63 13 2 48 Largest 5 | 3 4 4 5 5 . 5 5 5 5 5 5 5 5 5 5 5 5 5 5 . 5 5 5 5 5 5 Hottest 434 | 150 233 233 320 320 . 332 332 324 324 415 415 415 415 434 434 434 434 434 434 . 434 434 434 434 434 434 Shots Fired 4928 | 18 378 107 579 35 . 114 578 10 95 556 105 10 5 80 218 64 478 90 135 . 125 518 315 65 10 240 Gun 4928 | 18 378 107 579 35 . 114 578 10 95 556 105 10 5 80 218 64 478 90 135 . 125 518 315 65 10 240 Cannon . | . . . . . . . . . . . . . . . . . . . . . . . . . . . Launcher . | . . . . . . . . . . . . . . . . . . . . . . . . . . . Special . | . . . . . . . . . . . . . . . . . . . . . . . . . . . Kinetic 9 | . . . . . . . 9 . . . . . . . . . . . . . . . . . . . Thermal 4919 | 18 378 107 579 35 . 114 569 10 95 556 105 10 5 80 218 64 478 90 135 . 125 518 315 65 10 240 Explosive . | . . . . . . . . . . . . . . . . . . . . . . . . . . . Electromagnetic . | . . . . . . . . . . . . . . . . . . . . . . . . . . . Robot Hit Streak 76 | 2 11 7 18 12 . 18 30 . 39 42 33 8 . 13 66 41 65 38 31 . 33 75 76 25 11 31 Robot Miss Streak 4 | 4 4 3 2 1 . 2 2 . 1 2 1 . . 2 2 1 4 1 1 . 3 2 1 2 1 1 Penetration Max . | . . . . . . . . . . . . . . . . . . . . . . . . . . . Secondary Targets 84 | . 4 5 12 . . 5 6 . 3 3 8 . . 5 1 . 4 3 4 . . 4 10 4 . 3 Max Gunslinging Chain 3 | . 2 1 3 . . 2 1 . 1 1 2 . . 2 1 . 1 1 1 . . 1 1 1 . 1 Shots Hit Robots 2526 | 6 73 46 157 10 . 74 178 . 77 220 74 4 . 46 150 53 321 49 94 . 82 327 262 49 4 170 Core Hits 1024 | 4 31 22 69 6 . 31 70 2 27 72 33 3 . 21 57 15 140 24 32 . 36 126 99 19 3 82 Critical Kills . | . . . . . . . . . . . . . . . . . . . . . . . . . . . Critical Parts Destroyed . | . . . . . . . . . . . . . . . . . . . . . . . . . . . Critical Strikes 347 | 1 7 3 11 1 . 4 15 . 3 41 10 . . 5 24 10 52 7 19 . 15 48 36 8 1 26 Burn 347 | 1 7 3 11 1 . 4 15 . 3 41 10 . . 5 24 10 52 7 19 . 15 48 36 8 1 26 Melee Attacks . | . . . . . . . . . . . . . . . . . . . . . . . . . . . Impact . | . . . . . . . . . . . . . . . . . . . . . . . . . . . Slashing . | . . . . . . . . . . . . . . . . . . . . . . . . . . . Piercing . | . . . . . . . . . . . . . . . . . . . . . . . . . . . Sneak Attacks . | . . . . . . . . . . . . . . . . . . . . . . . . . . . Combat Hostiles . | . . . . . . . . . . . . . . . . . . . . . . . . . . . Follow-up Attacks . | . . . . . . . . . . . . . . . . . . . . . . . . . . . Damage Inflicted 62175 | 74 1185 710 3929 192 . 1484 4189 141 1698 5267 1641 99 . 966 3630 1194 8076 1168 2282 . 2003 8517 6553 1268 92 5817 Guns 59206 | 74 1185 710 3352 192 . 1484 3771 . 1698 4992 1641 99 . 966 3630 1194 7777 1168 2282 . 2003 8517 6553 1268 92 4558 Cannons . | . . . . . . . . . . . . . . . . . . . . . . . . . . . Explosions 2969 | . . . 577 . . . 418 141 . 275 . . . . . . 299 . . . . . . . . 1259 Melee . | . . . . . . . . . . . . . . . . . . . . . . . . . . . Ramming . | . . . . . . . . . . . . . . . . . . . . . . . . . . . Kinetic 36 | . . . . . . . 36 . . . . . . . . . . . . . . . . . . . Thermal 59931 | 74 1185 710 3800 192 . 1484 4001 . 1698 5039 1641 99 . 966 3630 1194 7777 1168 2282 . 2003 8517 6553 1268 92 4558 Explosive 687 | . . . 129 . . . 152 141 . 228 . . . . . . 37 . . . . . . . . . Electromagnetic 1521 | . . . . . . . . . . . . . . . . . 262 . . . . . . . . 1259 Impact . | . . . . . . . . . . . . . . . . . . . . . . . . . . . Slashing . | . . . . . . . . . . . . . . . . . . . . . . . . . . . Piercing . | . . . . . . . . . . . . . . . . . . . . . . . . . . . Highest Corruption 32 | . . . 5 5 5 5 5 . . 5 . . . . . 26 32 . . . 2 2 . . . 22 Average Corruption 11 | . . . 5 5 5 5 3 . . 2 . . . . . 16 25 . . . 1 1 . . . 4 Corruption Purged 59 | . . . . . . . 5 . . 6 . . . . . . 32 . . . 2 3 . . . 11 Corruption Blocked . | . . . . . . . . . . . . . . . . . . . . . . . . . . . Effects 278 | . . . 58 22 10 27 4 . . 1 . . . . . 14 136 . . . 2 2 . . . 2 Message Errors 66 | . . . 13 3 1 9 1 . . 1 . . . . . 4 33 . . . . 1 . . . . Matter Fused 64 | . . . 10 9 5 3 3 . . . . . . . . 2 31 . . . 1 . . . . . Heat Flow Errors 26 | . . . 8 2 1 4 . . . . . . . . . . 10 . . . . . . . . 1 Energy Discharges 26 | . . . 7 2 . 3 . . . . . . . . . 1 12 . . . 1 . . . . . Parts Fused 5 | . . . 2 . . 1 . . . . . . . . . . 2 . . . . . . . . . Data Loss (minor) 25 | . . . 4 4 3 2 . . . . . . . . . 1 10 . . . . 1 . . . . Data Loss (major) 12 | . . . 3 1 . 3 . . . . . . . . . 1 3 . . . . . . . . 1 Misfires 12 | . . . 4 . . 1 . . . . . . . . . 1 6 . . . . . . . . . Alerts 7 | . . . 1 1 . . . . . . . . . . . 2 3 . . . . . . . . . Misdirections 3 | . . . . . . . . . . . . . . . . . 3 . . . . . . . . . Weapon Failures 32 | . . . 6 . . 1 . . . . . . . . . 2 23 . . . . . . . . . Overload Shots . | . . . . . . . . . . . . . . . . . . . . . . . . . . . Overflow Damage 339 | . . . 29 . . . 166 . . 54 . . . . . . 1 . . . . . . . . 89 Projectiles . | . . . . . . . . . . . . . . . . . . . . . . . . . . . Explosions 339 | . . . 29 . . . 166 . . 54 . . . . . . 1 . . . . . . . . 89 Melee . | . . . . . . . . . . . . . . . . . . . . . . . . . . . Knockbacks . | . . . . . . . . . . . . . . . . . . . . . . . . . . . Impact . | . . . . . . . . . . . . . . . . . . . . . . . . . . . Kinetic . | . . . . . . . . . . . . . . . . . . . . . . . . . . . Secondary . | . . . . . . . . . . . . . . . . . . . . . . . . . . . Self-Inflicted Damage 527 | . 106 . 99 . . . 64 . . 56 . . . . . . . . . . . . . . . 202 Shots 9 | . 2 . 1 . . . 2 . . 1 . . . . . . . . . . . . . . . 3 Rammed . | . . . . . . . . . . . . . . . . . . . . . . . . . . . Targets Rammed . | . . . . . . . . . . . . . . . . . . . . . . . . . . . Kicked . | . . . . . . . . . . . . . . . . . . . . . . . . . . . Crushed . | . . . . . . . . . . . . . . . . . . . . . . . . . . . Highest Temperature 416 | 216 407 129 292 161 51 182 66 36 14 405 405 123 123 149 30 . 185 282 398 . 416 282 354 126 21 104 Average Temperature 74 | 88 90 38 52 44 51 45 15 21 10 98 134 68 68 71 21 . 84 108 148 . 156 68 75 55 14 32 Received Heat Transfer 1966 | . 183 243 189 . . 99 84 . 161 149 136 . . 28 77 . 120 8 85 . 29 64 106 4 . 201 Effects 12 | . 4 . . . . . . . . 4 . . . . . . . . 2 . 1 . 1 . . . Shutdowns 8 | . 2 . . . . . . . . 3 . . . . . . . . 1 . 1 . 1 . . . Energy Bleed 2 | . . . . . . . . . . 1 . . . . . . . . 1 . . . . . . . Interference 2 | . 2 . . . . . . . . . . . . . . . . . . . . . . . . . Siege Activations . | . . . . . . . . . . . . . . . . . . . . . . . . . . . Martial Activations . | . . . . . . . . . . . . . . . . . . . . . . . . . . . Shielding Activations . | . . . . . . . . . . . . . . . . . . . . . . . . . . . Robots Disrupted 1 | . . . . . . . . . . . . . . . . . 1 . . . . . . . . . Combat Hostiles 1 | . . . . . . . . . . . . . . . . . 1 . . . . . . . . . Robots Corrupted 1 | . . . . . . . . . . . . . . . . . . . . . . . . . . 1 Combat Hostiles 1 | . . . . . . . . . . . . . . . . . . . . . . . . . . 1 Parts Fried 7 | . . . . . . . . . . . . . . . . . 2 . . . . . . . . 5 Impact Corruptions . | . . . . . . . . . . . . . . . . . . . . . . . . . . . Robots Melted 136 | . 1 . 3 . . . 1 . 1 16 5 . . 3 12 3 20 1 6 . 7 24 13 5 1 14 Combat Hostiles 112 | . 1 . 3 . . . 1 . 1 9 5 . . 3 11 3 18 1 6 . 5 18 13 5 . 9 Parts Melted 683 | 1 4 1 25 . . 4 30 . 8 73 22 1 . 8 53 15 123 16 30 . 22 114 74 13 3 43 Heat Transferred 149839 | 296 3404 1998 7367 444 . 3034 7896 . 3108 14483 4700 200 . 2624 9827 3496 20615 3098 6392 . 5431 21287 15720 3183 300 10936 Parts Sabotaged . | . . . . . . . . . . . . . . . . . . . . . . . . . . . Parts Stolen . | . . . . . . . . . . . . . . . . . . . . . . . . . . . Parts Stripped . | . . . . . . . . . . . . . . . . . . . . . . . . . . . Power Chain Reactions 2 | . . . . . . . 1 . . . . . . . . . . . . . . . . . . 1 Alert | -11 -10 -10 -9 -9 -9 -8 -8 -7 -7 -6 -6 -6 -6 -5 -5 -5 -5 -5 -5 -5 -4 -4 -4 -4 -4 -4 ------- Run | Yrd Mat Min Mat Min Exi Min Mat Fac DSF Fac Low Low Zio Pro Fac Was Fac Upp Upp Zhi Pro Fac Ext Cet Arc Hub Maximum Alert Level 5 | . 1 . 3 1 . . 3 2 2 4 . . . . 2 . 4 . . . . 2 4 3 2 5 Low Security (%) 32 | 100 78 100 21 37 . 100 50 . . . . . . . 7 100 36 . . . . 15 17 . . 6 Level 1 28 | . 21 . 31 62 . . 18 . 14 52 . . . . 50 . 3 . . . . 46 15 . 82 50 Level 2 16 | . . . 14 . . . 10 100 85 14 . . . . 42 . 11 . . . . 37 25 . 17 8 Level 3 18 | . . . 31 . . . 20 . . 31 . . . . . . 43 . . . . . 10 100 . . Level 4 3 | . . . . . . . . . . . . . . . . . 3 . . . . . 31 . . 24 Level 5 . | . . . . . . . . . . . . . . . . . . . . . . . . . . 8 High Security . | . . . . . . . . . . . . . . . . . . . . . . . . . . . Max Security . | . . . . . . . . . . . . . . . . . . . . . . . . . . . Sterilizations 1 | . . . . . . . . . 1 . . . . . . . . . . . . . . . . . Peak Influence 2131 | 10 330 146 960 374 . 156 981 535 647 1227 . . . . 455 103 1136 . . . . 668 1354 937 426 2131 Initial 735 | . . 81 . 374 . . 20 443 367 339 . . . . 450 103 . . . . . . 208 735 322 103 Average 409 | 1 107 83 442 237 . 62 338 442 541 534 . . . . 333 44 542 . . . . 363 713 840 358 667 Influence Increases 20760 | 15 959 300 2369 170 . 423 1952 102 280 1591 475 30 . 310 1352 2 1936 335 315 . 310 1670 2258 372 154 3080 Destroy 0b10 Robot/C 9180 | . 320 180 780 100 . 320 580 . 220 620 440 20 . 280 480 . 1060 280 260 . 280 920 1020 160 60 800 Destroy 0b10 Robot/NC 885 | 15 40 5 145 . . 5 110 10 20 95 . . . 10 35 . 105 . . . 10 110 45 10 . 115 Destroy Leader 2006 | . 88 40 222 20 . 60 182 . 40 228 20 10 . 20 134 . 288 40 40 . 20 260 86 . . 208 Allied During Kill 1538 | . . . 10 . . . . . . . . . . . . . 2 . . . . . 987 170 60 309 Successful Hack 248 | . 20 . 16 . . . 27 . . 84 . . . . 30 . 40 . . . . 2 25 4 . . Disable Machine 3735 | . 345 75 855 45 . 30 735 90 . 435 . . . . 180 . 180 . . . . 180 30 . 30 525 Destroy Structure 2433 | . 116 . 341 5 . 8 318 2 . 129 . . . . 28 2 246 . . . . 198 50 28 4 958 Advance Influence 450 | . . . . . . . . . . . . . . . 450 . . . . . . . . . . . Partial Spotted 15 | . . . . . . . . . . . . . . . 15 . . . . . . . . . . . Lose Combat Pursuer 270 | . 30 . . . . . . . . . 15 . . . . . 15 15 15 . . . 15 . . 165 Influence Decreases 18633 | 15 749 510 1409 984 146 369 1030 553 158 1011 1062 670 . 310 1056 298 927 798 611 250 310 1244 1370 881 663 1249 Entered New Map 4866 | . . 129 . 586 146 . 34 533 158 308 455 122 . . . 193 . 374 105 250 . . 218 579 483 193 Time Decay 9590 | 15 449 381 652 398 . 369 696 20 . 703 607 548 . 290 506 105 607 404 506 . 310 644 522 302 140 416 Search Patrol Dispatched 100 | . . . . . . . . . . . . . . . 100 . . . . . . . . . . . Lost Ally 645 | . . . 25 . . . . . . . . . . 20 . . 20 20 . . . . 180 . 40 340 Purge Threat 3432 | . 300 . 732 . . . 300 . . . . . . . 450 . 300 . . . . 600 450 . . 300 Squads Dispatched 81 | . 5 1 4 . . . 2 . 2 13 . . . 1 4 . 15 . . . . 12 5 . . 17 Investigation 14 | . 3 1 1 . . . 1 . . 1 . . . . 1 . 4 . . . . . 2 . . . Extermination 22 | . . . . . . . . . . 4 . . . . 2 . 8 . . . . 6 . . . 2 Reinforcement 30 | . 2 . 3 . . . 1 . 2 4 . . . . 1 . 2 . . . . 6 1 . . 8 Assault 8 | . . . . . . . . . . 1 . . . 1 . . 1 . . . . . 2 . . 3 Garrison 7 | . . . . . . . . . . 3 . . . . . . . . . . . . . . . 4 Intercept . | . . . . . . . . . . . . . . . . . . . . . . . . . . . Searches Triggered 1 | . . . . . . . . . . . . . . . 1 . . . . . . . . . . . Construction Impeded 1 | . . . . . . . . . . . . . . . . . . . . . . . . . . 1 Haulers Reinforced 5 | . . . . . . . . . . 1 . . . . . . . . . . . 4 . . . . Active Scanning Responses . | . . . . . . . . . . . . . . . . . . . . . . . . . . . Cargo Convoy Interrupts 1 | . . . . . . . . . . . . . . . . . 1 . . . . . . . . . Stealth | -11 -10 -10 -9 -9 -9 -8 -8 -7 -7 -6 -6 -6 -6 -5 -5 -5 -5 -5 -5 -5 -4 -4 -4 -4 -4 -4 --------- Run | Yrd Mat Min Mat Min Exi Min Mat Fac DSF Fac Low Low Zio Pro Fac Was Fac Upp Upp Zhi Pro Fac Ext Cet Arc Hub Distress Signals 20 | . . 1 1 . . . 2 . . . . . . 1 1 . 1 . . . 1 . 3 2 . 7 Communications Jammed 113 | . . . . . . . . . . . . . . . 8 . 55 . . . 2 16 15 . . 17 Distress Signals 100 | . . . . . . . . . . . . . . . 8 . 50 . . . . 12 15 . . 15 Times Spotted 537 | . 27 31 49 4 . 14 34 . 10 32 18 1 . 18 30 5 56 14 17 . 15 58 51 10 2 41 Peak Tracking Total 14 | . 4 14 6 2 . 3 3 . 4 3 10 1 . 5 6 1 5 5 3 . 2 3 7 5 1 13 Tactical Retreats 12 | . 2 2 . . . . . . . . 1 . . . . . 1 1 1 . . . 1 . . 3 Traps | -11 -10 -10 -9 -9 -9 -8 -8 -7 -7 -6 -6 -6 -6 -5 -5 -5 -5 -5 -5 -5 -4 -4 -4 -4 -4 -4 ------- Run | Yrd Mat Min Mat Min Exi Min Mat Fac DSF Fac Low Low Zio Pro Fac Was Fac Upp Upp Zhi Pro Fac Ext Cet Arc Hub Traps Triggered 14 | . 2 . . . . . 1 . 1 1 . . . . 1 . 3 . . . . 1 1 . . 3 Indirectly 1 | . . . . . . . . . . . . . . . . . 1 . . . . . . . . . Trap Hack Attempts . | . . . . . . . . . . . . . . . . . . . . . . . . . . . Triggered . | . . . . . . . . . . . . . . . . . . . . . . . . . . . Disarmed . | . . . . . . . . . . . . . . . . . . . . . . . . . . . Reprogrammed . | . . . . . . . . . . . . . . . . . . . . . . . . . . . Reused . | . . . . . . . . . . . . . . . . . . . . . . . . . . . Traps Extracted . | . . . . . . . . . . . . . . . . . . . . . . . . . . . Installed . | . . . . . . . . . . . . . . . . . . . . . . . . . . . Triggered . | . . . . . . . . . . . . . . . . . . . . . . . . . . . Machines | -11 -10 -10 -9 -9 -9 -8 -8 -7 -7 -6 -6 -6 -6 -5 -5 -5 -5 -5 -5 -5 -4 -4 -4 -4 -4 -4 ---------- Run | Yrd Mat Min Mat Min Exi Min Mat Fac DSF Fac Low Low Zio Pro Fac Was Fac Upp Upp Zhi Pro Fac Ext Cet Arc Hub Machines Disabled 253 | . 23 5 57 3 . 2 49 6 . 29 1 . . 1 12 . 12 . . . 1 12 3 . 2 35 Max in Single Turn 17 | . 2 1 3 1 . 1 3 6 . 8 1 . . 1 6 . 4 . . . 1 5 . . . 17 Garrison Access 8 | . . . . . . . 1 . . 3 . . . . . . 1 . . . . 2 . . . 1 Network Hub 4 | . . . . . . . . . . . . . . . . . . . . . . . . . . 4 Machines Repaired . | . . . . . . . . . . . . . . . . . . . . . . . . . . . Machines Dismantled . | . . . . . . . . . . . . . . . . . . . . . . . . . . . Machines Sabotaged . | . . . . . . . . . . . . . . . . . . . . . . . . . . . Overloaded Fab Kills . | . . . . . . . . . . . . . . . . . . . . . . . . . . . Hacking | -11 -10 -10 -9 -9 -9 -8 -8 -7 -7 -6 -6 -6 -6 -5 -5 -5 -5 -5 -5 -5 -4 -4 -4 -4 -4 -4 --------- Run | Yrd Mat Min Mat Min Exi Min Mat Fac DSF Fac Low Low Zio Pro Fac Was Fac Upp Upp Zhi Pro Fac Ext Cet Arc Hub Machines Accessed 123 | . 8 1 10 . 1 . 15 1 . 17 3 1 . . 6 . 19 3 1 5 . 13 12 3 . 4 Terminals 72 | . 6 . 8 . . . 11 1 . 8 1 . . . 3 . 9 . . . . 7 12 3 . 3 Fabricators 7 | . . . . . . . . . . 4 . . . . . . 2 . . . . 1 . . . . Repair Stations . | . . . . . . . . . . . . . . . . . . . . . . . . . . . Recycling Units 13 | . 2 . 1 . . . 1 . . 1 . . . . 2 . 4 . . . . 2 . . . . Scanalyzers 7 | . . . 1 . . . 2 . . 1 . . . . 1 . 2 . . . . . . . . . Garrison Access 10 | . . . . . . . 1 . . 3 . . . . . . 2 . . . . 3 . . . 1 Total Hacks 360 | . 28 1 34 . 1 . 50 2 . 45 10 1 . . 20 . 60 7 1 18 . 34 31 9 . 8 Successful 211 | . 21 1 24 . 1 . 31 1 . 19 10 1 . . 12 . 29 7 1 18 . 14 12 4 . 5 Failed 146 | . 6 . 9 . . . 18 1 . 26 . . . . 8 . 31 . . . . 20 19 5 . 3 Catastrophic 22 | . . . 2 . . . 3 . . 2 . . . . 4 . 6 . . . . 3 . 1 . 1 Database Lockouts 3 | . 1 . 1 . . . 1 . . . . . . . . . . . . . . . . . . . Manual 172 | . 22 . 21 . 1 . 26 . . 23 . . . . 11 . 34 1 . . . 23 3 1 . 6 Terminals 221 | . 20 . 28 . . . 38 2 . 20 6 . . . 12 . 28 . . . . 20 31 9 . 7 Fabricators 26 | . . . . . . . . . . 12 . . . . . . 12 . . . . 2 . . . . Repair Stations . | . . . . . . . . . . . . . . . . . . . . . . . . . . . Recycling Units 44 | . 8 . 4 . . . 5 . . 3 . . . . 6 . 12 . . . . 6 . . . . Scanalyzers 21 | . . . 2 . . . 6 . . 7 . . . . 2 . 4 . . . . . . . . . Garrison Access 15 | . . . . . . . 1 . . 3 . . . . . . 4 . . . . 6 . . . 1 Terminal Hacks 100 | . 5 1 11 . 1 . 11 1 . 1 10 1 . . 5 . 5 7 1 18 . 4 12 4 . 2 Record 24 | . . . . . . . . . . . 9 . . . . . . 5 . 6 . . . 4 . . Part Schematic 4 | . . . . . . . . . . . . . . . . . . . . 4 . . . . . . Robot Analysis 6 | . 2 . . . . . . . . . . . . . . . . . . 4 . . . . . . Prototype ID Bank 9 | . . . 2 . . . 2 . . . . . . . . . 1 . . 4 . . . . . . Open Door 14 | . . 1 . . . . . . . . 1 1 . . . . . 2 1 . . . 8 . . . Open DSF 1 | . . . . . . . . 1 . . . . . . . . . . . . . . . . . . Branch Access Points 1 | . . . 1 . . . . . . . . . . . . . . . . . . . . . . . Emergency Access Points 1 | . . . . . . . 1 . . . . . . . . . . . . . . . . . . . Alert Level 12 | . 1 . 2 . . . 4 . . 1 . . . . 2 . 1 . . . . . 1 . . . Unreport Threat 23 | . 2 . 5 . . . 2 . . . . . . . 3 . 2 . . . . 4 3 . . 2 Locate Traps 1 | . . . . . . . 1 . . . . . . . . . . . . . . . . . . . Hauler Manifests 2 | . . . 1 . . . 1 . . . . . . . . . . . . . . . . . . . Registered Components 1 | . . . . . . . . . . . . . . . . . 1 . . . . . . . . . Proto ID Catalog 1 | . . . . . 1 . . . . . . . . . . . . . . . . . . . . . Fabricator Hacks 4 | . . . . . . . . . . 1 . . . . . . 3 . . . . . . . . . Network Status 2 | . . . . . . . . . . 1 . . . . . . 1 . . . . . . . . . Load Schematic 1 | . . . . . . . . . . . . . . . . . 1 . . . . . . . . . Build 1 | . . . . . . . . . . . . . . . . . 1 . . . . . . . . . Repair Station Hacks . | . . . . . . . . . . . . . . . . . . . . . . . . . . . Recycling Unit Hacks 20 | . 4 . 2 . . . 2 . . 1 . . . . 3 . 6 . . . . 2 . . . . Report Inventory 12 | . 2 . 1 . . . 1 . . 1 . . . . 2 . 4 . . . . 1 . . . . Retrieve Components 8 | . 2 . 1 . . . 1 . . . . . . . 1 . 2 . . . . 1 . . . . Scanalyzer 12 | . . . 1 . . . 4 . . 3 . . . . 1 . 3 . . . . . . . . . Insert Component 2 | . . . . . . . 2 . . . . . . . . . . . . . . . . . . . Analyze 1 | . . . . . . . 1 . . . . . . . . . . . . . . . . . . . Retrieve Study 9 | . . . 1 . . . 1 . . 3 . . . . 1 . 3 . . . . . . . . . Garrison Access Hacks 8 | . . . . . . . 1 . . 3 . . . . . . 1 . . . . 2 . . . 1 Seal Access 8 | . . . . . . . 1 . . 3 . . . . . . 1 . . . . 2 . . . 1 Unauthorized Hacks 67 | . 12 . 10 . . . 13 . . 10 . . . . 3 . 11 . . . . 6 . . . 2 Terminals 52 | . 10 . 10 . . . 12 . . 6 . . . . 2 . 7 . . . . 3 . . . 2 Botnet 22 | . 5 . 4 . . . 5 . . 1 . . . . 2 . 2 . . . . 2 . . . 1 Skim 30 | . 5 . 6 . . . 7 . . 5 . . . . . . 5 . . . . 1 . . . 1 Fabricators 8 | . . . . . . . . . . 4 . . . . . . 3 . . . . 1 . . . . Report 3 | . . . . . . . . . . 1 . . . . . . 1 . . . . 1 . . . . Prioritize 1 | . . . . . . . . . . . . . . . . . 1 . . . . . . . . . Liberate 2 | . . . . . . . . . . 2 . . . . . . . . . . . . . . . . Fabnet 2 | . . . . . . . . . . 1 . . . . . . 1 . . . . . . . . . Repair Stations . | . . . . . . . . . . . . . . . . . . . . . . . . . . . Recycling Units 5 | . 2 . . . . . 1 . . . . . . . 1 . . . . . . 1 . . . . Reject 5 | . 2 . . . . . 1 . . . . . . . 1 . . . . . . 1 . . . . Scanalyzers . | . . . . . . . . . . . . . . . . . . . . . . . . . . . Garrison Access 2 | . . . . . . . . . . . . . . . . . 1 . . . . 1 . . . . Watchers 2 | . . . . . . . . . . . . . . . . . 1 . . . . 1 . . . . Data Cores Recovered 7 | . . . . . . . 1 . . 1 . . . . 2 . 1 . . . . 2 . . . . Used 3 | . . . . . . . . . . . . . . . 2 . . . . . . 1 . . . . Hacking Detections 84 | . 6 . 8 . . . 13 . . 14 1 . . . 5 . 16 . . . . 11 5 3 . 2 Full Trace Events 10 | . 1 . 1 . . . . . . 1 1 . . . 1 . 3 . . . . . 2 . . . Feedback Events 1 | . . . . . . . . . . . . . . . . . 1 . . . . . . . . . Corruption 1 | . . . . . . . . . . . . . . . . . 1 . . . . . . . . . Feedback Blocked . | . . . . . . . . . . . . . . . . . . . . . . . . . . . Robot Schematics Acquired 4 | . . . . . . . . . . . . . 4 . . . . . . . . . . . . . Robots Built . | . . . . . . . . . . . . . . . . . . . . . . . . . . . Authchips . | . . . . . . . . . . . . . . . . . . . . . . . . . . . Time . | . . . . . . . . . . . . . . . . . . . . . . . . . . . Total Robot Build Rating . | . . . . . . . . . . . . . . . . . . . . . . . . . . . Part Schematics Acquired 20 | . . . . . . . 1 . . . . . 15 . . . . . . 4 . . . . . . Parts Built 2 | . . . . . . . . . . . . . . . . . 2 . . . . . . . . . Authchips . | . . . . . . . . . . . . . . . . . . . . . . . . . . . Time 42 | . . . . . . . . . . . . . . . . . 42 . . . . . . . . . Total Part Build Rating 8 | . . . . . . . . . . . . . . . . . 8 . . . . . . . . . Part Studies Acquired 6 | . . . . . . . 1 . . 3 . . . . 1 . 1 . . . . . . . . . Parts Repaired . | . . . . . . . . . . . . . . . . . . . . . . . . . . . Time . | . . . . . . . . . . . . . . . . . . . . . . . . . . . Parts Recycled . | . . . . . . . . . . . . . . . . . . . . . . . . . . . Recycled Matter . | . . . . . . . . . . . . . . . . . . . . . . . . . . . Retrieved Matter . | . . . . . . . . . . . . . . . . . . . . . . . . . . . Retrieved Components 53 | . 18 . 9 . . . 9 . . . . . . . 1 . 13 . . . . 3 . . . . Parts Scanalyzed 1 | . . . . . . . 1 . . . . . . . . . . . . . . . . . . . Part Schematics Acquired 1 | . . . . . . . 1 . . . . . . . . . . . . . . . . . . . Parts Damaged . | . . . . . . . . . . . . . . . . . . . . . . . . . . . Bothacking | -11 -10 -10 -9 -9 -9 -8 -8 -7 -7 -6 -6 -6 -6 -5 -5 -5 -5 -5 -5 -5 -4 -4 -4 -4 -4 -4 ------------ Run | Yrd Mat Min Mat Min Exi Min Mat Fac DSF Fac Low Low Zio Pro Fac Was Fac Upp Upp Zhi Pro Fac Ext Cet Arc Hub Used RIF Installer . | . . . . . . . . . . . . . . . . . . . . . . . . . . . Robots Hacked 13 | . . . . . . . . . . . . . . 1 . . 2 1 . . . . 1 . 1 7 Non-combat . | . . . . . . . . . . . . . . . . . . . . . . . . . . . Combat 13 | . . . . . . . . . . . . . . 1 . . 2 1 . . . . 1 . 1 7 Robot Hacks Applied . | . . . . . . . . . . . . . . . . . . . . . . . . . . . Relay Couplers Released 4 | . . . . . . . . . . 2 . . . . . . 2 . . . . . . . . . Machine Destruction 1 | . . . . . . . . . . 1 . . . . . . . . . . . . . . . . Programmers 3 | . . . . . . . . . . 1 . . . . . . 2 . . . . . . . . . Fabnet Peak Effective % 4 | . . . . . . . . . . . . . . 3 3 3 3 3 3 3 4 4 4 4 4 4 Autooverrided 13 | . . . . . . . . . . . . . . 1 . . 2 1 . . . . 1 . 1 7 Robots Rewired 20 | . . . . . . . . . . . . . . . . . . . . . . . 20 . . . Allies Hacked 3 | . . . . . . . . . . . . . . . . . 1 . . . . . 2 . . . Hacks Repelled . | . . . . . . . . . . . . . . . . . . . . . . . . . . . Allies | -11 -10 -10 -9 -9 -9 -8 -8 -7 -7 -6 -6 -6 -6 -5 -5 -5 -5 -5 -5 -5 -4 -4 -4 -4 -4 -4 -------- Run | Yrd Mat Min Mat Min Exi Min Mat Fac DSF Fac Low Low Zio Pro Fac Was Fac Upp Upp Zhi Pro Fac Ext Cet Arc Hub Total Allies 51 | . . 2 . . . . . . . . . . . 1 . . 3 1 . . . . 31 5 1 7 Largest Group 25 | . . 2 2 . . . . . . . . . . . . . 2 1 . . . . 21 25 20 18 Highest-Rated Group 1388 | . . 41 41 . . . . . . . . . . . . . 83 12 . . . . 960 1388 1126 922 Highest-Rated Ally 159 | . . 31 31 . . . . . . . . . . . . . 54 12 . . . . 159 159 159 96 Initial Warlord ECA Mod 9 | . . . . . . . . . . 9 9 9 9 8 8 8 8 2 2 2 1 1 . . . . Warlord Squad Rendezvous 7 | . . . . . . . . . . . . . . . . . 6 . . . . 1 . . . . Infantry 2 | . . . . . . . . . . . . . . . . . 2 . . . . . . . . . Ranger 1 | . . . . . . . . . . . . . . . . . 1 . . . . . . . . . Chimera 3 | . . . . . . . . . . . . . . . . . 2 . . . . 1 . . . . Ghost 1 | . . . . . . . . . . . . . . . . . 1 . . . . . . . . . Total Orders 5 | . . . . . . . . . . . . . . . . . . . . . . . . . 4 1 ROAM 2 | . . . . . . . . . . . . . . . . . . . . . . . . . 1 1 FOLLOW 3 | . . . . . . . . . . . . . . . . . . . . . . . . . 3 . Ally Attacks 314 | . . 1 9 . . . . . . . . . . . . . 10 3 . . . . 136 38 26 91 Total Damage 8285 | . . 20 105 . . . . . . . . . . . . . 92 . . . . . 3370 1079 702 2917 Kills 50 | . . 1 1 . . . . . . . . . . . . . 1 . . . . . 22 . 2 23 Allies Corrupted 4 | . . . . . . . . . . . . . . . . . . . . . . . . . . 4 Allies Melted 2 | . . . . . . . . . . . . . . . . . . . . . . . . . 1 1 Intel | -11 -10 -10 -9 -9 -9 -8 -8 -7 -7 -6 -6 -6 -6 -5 -5 -5 -5 -5 -5 -5 -4 -4 -4 -4 -4 -4 ------- Run | Yrd Mat Min Mat Min Exi Min Mat Fac DSF Fac Low Low Zio Pro Fac Was Fac Upp Upp Zhi Pro Fac Ext Cet Arc Hub Active Infowar (turns) 35947 | 27 1740 944 2613 944 399 1043 2915 40 416 3058 1961 1825 1385 1567 1318 266 3293 962 1371 186 1520 2737 1455 669 290 1003 Sensors 1 | . . . . . . . . . . 1 . . . . . . . . . . . . . . . . Terrain 34535 | 27 1740 944 2613 944 399 1043 2915 40 416 3058 1961 1825 1385 1567 1282 265 2362 962 1345 185 1439 2405 1455 669 290 999 Traps 1 | . . . . . . . 1 . . . . . . . . . . . . . . . . . . . Jamming 15036 | . . . . . . . . . . . . . . . 1285 266 3293 962 1371 186 1519 2737 1455 669 290 1003 Robot Analysis Total 6 | . 2 . . . . . . . . . . . . . . . . . . 4 . . . . . . Derelict Logs Recovered 16 | . . 1 . 3 . . . . . . 1 2 . 3 . . . 3 2 . 1 . . . . . Drone Launches . | . . . . . . . . . . . . . . . . . . . . . . . . . . . Drone Recoveries . | . . . . . . . . . . . . . . . . . . . . . . . . . . . Exploration | -11 -10 -10 -9 -9 -9 -8 -8 -7 -7 -6 -6 -6 -6 -5 -5 -5 -5 -5 -5 -5 -4 -4 -4 -4 -4 -4 ------------- Run | Yrd Mat Min Mat Min Exi Min Mat Fac DSF Fac Low Low Zio Pro Fac Was Fac Upp Upp Zhi Pro Fac Ext Cet Arc Hub Turns Passed 36406 | 88 1744 944 2613 944 399 1043 2915 40 416 3058 1961 1825 1385 1913 1366 266 3293 962 1371 186 1520 2737 1455 669 290 1003 Spaces Moved 19807 | 39 1088 559 1242 503 231 472 1164 19 167 1602 1002 990 1044 877 889 189 1991 750 887 187 770 1588 649 214 112 582 Core 2 | 2 . . . . . . . . . . . . . . . . . . . . . . . . . . Treads 4129 | . . 8 928 503 231 472 1164 19 167 637 . . . . . . . . . . . . . . . . Legs . | . . . . . . . . . . . . . . . . . . . . . . . . . . . Wheels 15676 | 37 1088 551 314 . . . . . . 965 1002 990 1044 877 889 189 1991 750 887 187 770 1588 649 214 112 582 Hover . | . . . . . . . . . . . . . . . . . . . . . . . . . . . Flight . | . . . . . . . . . . . . . . . . . . . . . . . . . . . Fastest Speed 50 | 50 80 80 95 155 155 155 155 170 160 100 100 100 100 100 100 100 90 90 90 90 90 105 115 115 115 115 Average Speed 113 | 97 95 92 147 155 155 155 165 170 166 127 100 100 100 100 100 100 96 90 90 90 103 110 115 115 115 115 Slowest Speed 232 | 100 100 225 232 155 155 155 170 170 170 160 100 100 100 100 100 100 100 90 90 90 105 130 115 115 115 115 Overloaded Moves . | . . . . . . . . . . . . . . . . . . . . . . . . . . . Propulsion Burnouts . | . . . . . . . . . . . . . . . . . . . . . . . . . . . Robots Hopped . | . . . . . . . . . . . . . . . . . . . . . . . . . . . Potential Cave-ins . | . . . . . . . . . . . . . . . . . . . . . . . . . . . Cave-ins Triggered . | . . . . . . . . . . . . . . . . . . . . . . . . . . . Teleports 1 | . . . . . . . . . . . . . . . . . . . . 1 . . . . . . Exploration Rate (%) 74 | 4 100 98 95 98 61 89 94 1 93 39 97 96 87 88 27 97 51 88 94 62 93 46 86 70 79 74 Regions Visited 26 Branch Regions 16 Pre-discovered Areas 14 | . . . 2 . . . . . . 2 1 . 3 1 . . 1 . 1 3 . . . . . . Known Exits Taken 18 | . . . 1 . . 1 1 1 . 1 1 1 1 1 . . 1 1 1 1 1 1 1 1 1 . Unknown Exits Taken 5 | 1 1 1 . 1 1 . . . . . . . . . . . . . . . . . . . . . Scrap Searched 25 | . . 1 . 2 . 1 . . . . 4 3 5 2 . . . 1 3 . 3 . . . . . Spaces Dug 24 | . . . 3 . . . 4 . . . . . . . 1 . 3 2 . . 3 7 . . . 1 Terrain Destroyed 1985 | . 130 . 373 5 . 10 352 2 . 165 . . . 6 13 1 143 12 10 . 8 118 12 1 1 623 Melee . | . . . . . . . . . . . . . . . . . . . . . . . . . . . Projectile 234 | . . . 40 5 . 10 26 . . . . . . 6 13 1 34 12 10 . 8 44 12 1 1 11 AOE 1751 | . 130 . 333 . . . 326 2 . 165 . . . . . . 109 . . . . 74 . . . 612 Terrain Rammed . | . . . . . . . . . . . . . . . . . . . . . . . . . . . Walls Destroyed . | . . . . . . . . . . . . . . . . . . . . . . . . . . . Machines Disabled . | . . . . . . . . . . . . . . . . . . . . . . . . . . . Actions | -11 -10 -10 -9 -9 -9 -8 -8 -7 -7 -6 -6 -6 -6 -5 -5 -5 -5 -5 -5 -5 -4 -4 -4 -4 -4 -4 --------- Run | Yrd Mat Min Mat Min Exi Min Mat Fac DSF Fac Low Low Zio Pro Fac Was Fac Upp Upp Zhi Pro Fac Ext Cet Arc Hub Total 31064 | 72 1530 920 1667 648 272 721 1837 22 255 2309 1901 1816 1382 1864 1245 230 3086 988 1384 202 1428 2358 1231 611 269 816 Wait 8997 | 21 276 311 177 134 40 197 467 . 37 500 847 780 334 945 269 20 868 196 448 . 600 559 306 374 151 140 Move 19783 | 38 1087 558 1241 502 230 471 1163 18 166 1601 1001 989 1043 877 889 188 1990 749 886 186 769 1587 648 213 111 582 Hop . | . . . . . . . . . . . . . . . . . . . . . . . . . . . Pick Up 35 | . 2 2 2 . . . 4 1 1 7 . . . . 3 1 1 2 . . . 6 3 . . . Fast Attach 135 | 7 8 4 13 . 1 3 15 . 4 18 1 . 2 1 4 2 13 1 2 8 3 15 2 2 . 6 Attach 24 | . 1 1 1 . . 1 4 . . 4 . . . . 3 . . 2 . . 1 4 1 . . 1 Detach 27 | . . 2 . . 1 2 5 . . 3 1 . 1 . 3 1 2 2 . . 1 3 . . . . Swap 123 | . 6 3 13 . . 3 9 . 2 7 3 6 . 10 6 2 22 2 2 2 5 14 3 . . 3 Drop 156 | . 11 7 23 . . 4 17 1 7 21 . . 1 1 5 3 11 3 2 6 3 22 5 2 . 1 Fire 1079 | 6 116 27 147 7 . 23 117 2 19 112 21 2 1 16 46 13 99 18 27 . 25 109 63 13 2 48 Melee . | . . . . . . . . . . . . . . . . . . . . . . . . . . . Ram . | . . . . . . . . . . . . . . . . . . . . . . . . . . . Kick . | . . . . . . . . . . . . . . . . . . . . . . . . . . . Crush . | . . . . . . . . . . . . . . . . . . . . . . . . . . . Escape Stasis 8 | . . . . . . . . . . . . . . . . . . . . . . . 8 . . . Rewire 188 | . . . . . . . . . . . . 36 . . . . . . . . . . 152 . . . Trap . | . . . . . . . . . . . . . . . . . . . . . . . . . . . Miscellaneous 509 | . 23 5 50 5 . 17 36 . 19 36 27 3 . 14 17 . 80 13 17 . 21 39 40 7 5 35 Route ------- -11/Scrapyard -10/Materials (discovered 5 exits: *Mat x3 / *Min / [*Sub]) -10/Mines (discovered 3 exits: *Mat x2 / [*Sub]) -9/Materials (discovered 4 exits: *Mat x3 / *Min) -9/Mines (discovered 3 exits: *Mat x2 / *Exi) -9/Exiles (discovered 2 exits: [*Min x2]) -8/Mines (discovered 2 exits: *Mat x2) -8/Materials (discovered 3 exits: *Fac x3) -7/Factory (discovered 2 exits: Sto / DSF) -7/DSF -6/Factory (discovered 6 exits: *Fac x4 / *Low x2) -6/Lower Caves -6/Lower Caves (discovered 2 exits: *Fac / *Zio) -6/Zion -5/Proximity Caves -5/Factory (discovered 4 exits: *Fac x3 / *Upp) -5/Waste -5/Factory (discovered 4 exits: Fac x2 / *Upp x2) -5/Upper Caves -5/Upper Caves (discovered 2 exits: *Fac / *Zhi) -5/Zhirov -4/Proximity Caves -4/Factory (discovered 5 exits: *Res x2 / *Upp / *Ext x2) -4/Extension (discovered 3 exits: *Res x2 / *Cet) -4/Cetus (discovered 2 exits: *Res / *Arc) -4/Archives (discovered 3 exits: *Res / *Hub x2) -4/Hub_04(d) (discovered 4 exits: *Res x4) History --------- Turn | Location | Event 1 | -11/Scrapyard | Upgraded with Propulsion slot (x1) 1 | -11/Scrapyard | Upgraded with Utility slot (x1) 1 | -11/Scrapyard | Upgraded with Weapon slot (x2) 5 | -11/Scrapyard | Discovered new exit (range 16) 89 | -11/Scrapyard | Entered Materials 309 | -10/Materials | Build established: Skirmisher 642 | -10/Materials | Discovered new exit (range 8) 743 | -10/Materials | Discovered new exit (range 16) 778 | -10/Materials | Discovered new exit (range 15) 846 | -10/Materials | Central database locked down 851 | -10/Materials | Reached level 2 870 | -10/Materials | Upgraded with Power slot (x1) 870 | -10/Materials | Upgraded with Utility slot (x1) 894 | -10/Materials | Discovered new exit (range 9) 897 | -10/Materials | Discovered new exit (range 16) 1123 | -10/Materials | Build established: Scavenger-Skirmisher 1160 | -10/Materials | Loaded intel: 13 trap records 1234 | -10/Materials | Learned Storage emergency access door positions 1295 | -10/Materials | Reached level 3 1298 | -10/Materials | Upgraded with Weapon slot (x1) 1300 | -10/Materials | Learned Materials trap positions 1833 | -10/Materials | Entered Mines 1834 | -10/Mines | Assembled infested the area 1837 | -10/Mines | Reached level 4 1850 | -10/Mines | Core integrity fell below 50% 1860 | -10/Mines | Core integrity fell below 20% 1878 | -10/Mines | Discovered new exit (range 13) 1925 | -10/Mines | Discovered new exit (range 5) 1964 | -10/Mines | Found DCF Scrap (13 items) 1971 | -10/Mines | Upgraded with Utility slot (x1) 2254 | -10/Mines | Build established: Scavenger-Gunner 2395 | -10/Mines | Discovered new exit (range 4) 2517 | -10/Mines | Met a Derelict shopkeep closing up shop 2777 | -10/Mines | Entered Materials 2777 | -9/Materials | Accompanied by 2 allies 2778 | -9/Materials | Loaded intel: 9 trap records 2778 | -9/Materials | Core integrity fell below 50% 2778 | -9/Materials | Core integrity fell below 20% 2779 | -9/Materials | Reached level 5 2782 | -9/Materials | Led the pair of lost Derelicts to an unsafe place 2852 | -9/Materials | Reached level 6 2961 | -9/Materials | Upgraded with Power slot (x1) 3044 | -9/Materials | Reached level 7 3140 | -9/Materials | Discovered new exit (range 13) 3184 | -9/Materials | Upgraded with Utility slot (x1) 3432 | -9/Materials | Reached level 8 3480 | -9/Materials | Discovered new exit (range 15) 3778 | -9/Materials | Discovered new exit (range 16) 3937 | -9/Materials | Identified exit to Mines 4016 | -9/Materials | Reached level 9 4046 | -9/Materials | Identified exit to Materials 4108 | -9/Materials | Central database locked down 4173 | -9/Materials | Learned 2 Materials zone layouts 4197 | -9/Materials | Learned location of 2 exits from Materials 4209 | -9/Materials | Learned location of 2 exits from Materials 4265 | -9/Materials | Learned location of Recycling (-7) 4379 | -9/Materials | Upgraded with Utility slot (x1) 4379 | -9/Materials | Upgraded with Weapon slot (x1) 4812 | -9/Materials | Reached level 10 4905 | -9/Materials | Upgraded with Propulsion slot (x1) 5390 | -9/Materials | Entered Mines 5431 | -9/Mines | Met a Derelict bent on vengeance 5435 | -9/Mines | Learned Materials interactive machine intel 5572 | -9/Mines | Discovered exit to Materials (range 15) 5732 | -9/Mines | Learned Materials emergency access door positions 5819 | -9/Mines | Found a hidden stash of uninstalled traps 6278 | -9/Mines | Discovered new exit (range 6) 6328 | -9/Mines | Deemed a non-threat by the Exiles lab entrance 6334 | -9/Mines | Entered Exiles 6359 | -9/Exiles | Discovered new exit (range 15) 6412 | -9/Exiles | Met 8R-AWN 6438 | -9/Exiles | Met EX-HEX 6488 | -9/Exiles | Met EX-BIN 6507 | -9/Exiles | Aligned with FarCom system 6508 | -9/Exiles | Given EX-Vault access code 6545 | -9/Exiles | Opened EX-Vault 6557 | -9/Exiles | Found Superbattery 6618 | -9/Exiles | Warned to stay clear of 0b10 Research branches 6663 | -9/Exiles | Met EX-DEC 6717 | -9/Exiles | Discovered new exit (range 10) 6733 | -9/Exiles | Left Exiles lab with Superbattery 6733 | -9/Exiles | Entered Mines 6745 | -8/Mines | Reached level 11 6752 | -8/Mines | Upgraded with Utility slot (x1) 6873 | -8/Mines | Found a Scrap Suit stashed away for nefarious purposes 7061 | -8/Mines | Discovered exit to Materials (range 15) 7251 | -8/Mines | Discovered exit to Materials (range 14) 7776 | -8/Mines | Entered Materials 7777 | -8/Materials | Identified exit to Factory 7778 | -8/Materials | Reached level 12 7780 | -8/Materials | Loaded intel: 19 interactive machine locations 7798 | -8/Materials | Upgraded with Propulsion slot (x1) 8233 | -8/Materials | Learned Factory emergency access door positions 8313 | -8/Materials | Learned location of 1 exit from Lower Caves 8382 | -8/Materials | Learned 2 Lower Caves zone layouts 8441 | -8/Materials | Learned location of 1 exit from Extension 8481 | -8/Materials | Reached level 13 8491 | -8/Materials | Learned 2 Lower Caves zone layouts 8529 | -8/Materials | Learned location of 1 exit from Storage 8579 | -8/Materials | Learned location of 1 exit from Recycling 8638 | -8/Materials | Learned 2 Storage zone layouts 8839 | -8/Materials | Central database locked down 10204 | -8/Materials | Reached level 14 10207 | -8/Materials | Upgraded with Utility slot (x1) 10691 | -8/Materials | Entered Factory 10692 | -7/Factory | Identified exit to Storage 10724 | -7/Factory | Identified exit to DSF 10729 | -7/Factory | Reached level 15 10731 | -7/Factory | Entered DSF 10772 | -7/DSF | Additional patrols routed to DSF 10923 | -7/DSF | Discovered new exit (range 15) 10981 | -7/DSF | Sterilization system engaged 11001 | -7/DSF | Ambient heat levels rising (+10) 11016 | -7/DSF | Ambient heat levels rising (+10) 11031 | -7/DSF | Ambient heat levels rising (+10) 11046 | -7/DSF | Ambient heat levels rising (+10) 11061 | -7/DSF | Ambient heat levels rising (+10) 11076 | -7/DSF | Ambient heat levels rising (+10) 11091 | -7/DSF | Ambient heat levels rising (+10) 11106 | -7/DSF | Ambient heat levels rising (+10) 11121 | -7/DSF | Ambient heat levels rising (+10) 11136 | -7/DSF | Ambient heat levels rising (+10) 11143 | -7/DSF | Identified exit to Factory 11147 | -7/DSF | Entered Factory 11149 | -6/Factory | Reached level 16 11155 | -6/Factory | Upgraded with Utility slot (x1) 11217 | -6/Factory | Reached level 17 11633 | -6/Factory | Discovered new exit (range 9) 11659 | -6/Factory | Identified exit to Factory 12228 | -6/Factory | Reached level 18 12529 | -6/Factory | Garrison activated, responded to threat 13116 | -6/Factory | Learned location of Zion (-6) 13150 | -6/Factory | Learned location of 1 exit from Upper Caves 13172 | -6/Factory | Learned 2 Upper Caves zone layouts 13185 | -6/Factory | Learned location of Extension (-4) 13186 | -6/Factory | Identified exit to Lower Caves 13188 | -6/Factory | Learned location of 2 exits from Factory 13189 | -6/Factory | Learned 2 Upper Caves zone layouts 13215 | -6/Factory | Build established: Hacker-Gunner 13597 | -6/Factory | First assault squad dispatched 13733 | -6/Factory | Reached level 19 13742 | -6/Factory | Upgraded with Utility slot (x1) 14205 | -6/Factory | Entered Lower Caves 14206 | -6/Lower Caves | Identified exit to Lower Caves 14214 | -6/Lower Caves | Met a Warlord Commander 14215 | -6/Lower Caves | Learned location of Warlord (-4) 14216 | -6/Lower Caves | Warlord Commander delivered Encrypted Comm Array 14220 | -6/Lower Caves | Learned 4 Factory zone layouts 14230 | -6/Lower Caves | Found Encrypted Comm Array 14622 | -6/Lower Caves | Entered an active Warlord outpost 14644 | -6/Lower Caves | Learned location of 1 exit from Research 14644 | -6/Lower Caves | Learned Research garrison access intel 15026 | -6/Lower Caves | Encountered a Warlord checkpoint 15179 | -6/Lower Caves | Attracted the attention of an 0b10 base 15237 | -6/Lower Caves | Destroyed 10 combat bots 15257 | -6/Lower Caves | Learned location of 1 exit from Factory 15257 | -6/Lower Caves | Learned 6 Upper Caves zone layouts 15257 | -6/Lower Caves | Learned Extension stockpile data 15257 | -6/Lower Caves | Learned Armory stockpile data 16166 | -6/Lower Caves | Entered another Lower Caves area 16168 | -6/Lower Caves | Reached level 20 16255 | -6/Lower Caves | Discovered exit to Factory (range 15) 16329 | -6/Lower Caves | Encountered a Warlord checkpoint 16716 | -6/Lower Caves | Entered a destroyed Warlord outpost 17684 | -6/Lower Caves | Discovered new exit (range 13) 17698 | -6/Lower Caves | Identified exit to Zion 17910 | -6/Lower Caves | Learned Factory emergency access door positions 17991 | -6/Lower Caves | Entered Zion 18138 | -6/Zion | Discovered new exit (range 17) 18147 | -6/Zion | Given A8's code to call for help 18297 | -6/Zion | Learned location of Quarantine (-2) 18682 | -6/Zion | Given the Hacking Drone Bay 18905 | -6/Zion | Rebuked by Imprinter 19346 | -6/Zion | Identified exit to Proximity Caves 19376 | -6/Zion | Entered Proximity Caves 19802 | -5/Proximity Caves | Spotter reported a threat 19937 | -5/Proximity Caves | Spotter reported a threat 20045 | -5/Proximity Caves | Spotter reported a threat 20186 | -5/Proximity Caves | Attracted the attention of an 0b10 outpost 20197 | -5/Proximity Caves | Reached level 21 20369 | -5/Proximity Caves | Learned location of Armory (-3) 20423 | -5/Proximity Caves | Learned 8 Factory zone layouts 20595 | -5/Proximity Caves | Discovered exit to Factory (range 16) 20799 | -5/Proximity Caves | Attracted the attention of an 0b10 checkpoint 20856 | -5/Proximity Caves | Learned Factory stockpile data 21289 | -5/Proximity Caves | Entered Factory 21290 | -5/Factory | Identified exit to Factory 21291 | -5/Factory | Identified exit to Upper Caves 21589 | -5/Factory | Search patrols dispatched 21623 | -5/Factory | Reached level 22 21631 | -5/Factory | Upgraded with Utility slot (x1) 21701 | -5/Factory | Build established: Hacker-Skirmisher 22146 | -5/Factory | Destroyed 9 combat bots 22151 | -5/Factory | Spotted B-75 Beast 22153 | -5/Factory | Destroyed B-75 Beast 22655 | -5/Factory | Sucked down chute 22655 | -5/Factory | Entered Waste 22670 | -5/Waste | EMP discharged 22670 | -5/Waste | System corruption reached 10% 22677 | -5/Waste | Spotted C-40 Crusher 22682 | -5/Waste | Destroyed C-40 Crusher 22687 | -5/Waste | Spotted C-40 Crusher 22694 | -5/Waste | Destroyed C-40 Crusher 22701 | -5/Waste | Spotted C-40 Crusher 22737 | -5/Waste | Destroyed C-40 Crusher 22751 | -5/Waste | Spotted C-40 Crusher 22754 | -5/Waste | Spotted C-40 Crusher 22763 | -5/Waste | Destroyed C-40 Crusher 22770 | -5/Waste | EMP discharged 22774 | -5/Waste | Destroyed C-40 Crusher 22778 | -5/Waste | Spotted C-40 Crusher 22789 | -5/Waste | Destroyed C-40 Crusher 22857 | -5/Waste | Discovered new exit (range 15) 22870 | -5/Waste | EMP discharged 22920 | -5/Waste | Identified exit to Factory 22921 | -5/Waste | Entered Factory 23009 | -5/Factory | Joined by Warlord Chimera squad 23368 | -5/Factory | Reached level 23 23547 | -5/Factory | Cargo convoy interrupted 23645 | -5/Factory | Joined by Warlord Infantry squad 23804 | -5/Factory | System corruption reached 30% 24054 | -5/Factory | Joined by Warlord Chimera squad 24283 | -5/Factory | Build established: Hacker-Gunner 24321 | -5/Factory | Destroyed 11 combat bots 24572 | -5/Factory | Joined by Warlord Ghost squad 24734 | -5/Factory | Fabricated System Restoration Module (x2) 25021 | -5/Factory | First assault squad dispatched 25552 | -5/Factory | Discovered exit to Upper Caves (range 10) 25623 | -5/Factory | Joined by Warlord Ranger squad 25830 | -5/Factory | Discovered exit to Upper Caves (range 20) 25886 | -5/Factory | Joined by Warlord Infantry squad 25895 | -5/Factory | Learned 4 Upper Caves zone layouts 25946 | -5/Factory | Learned Extension terminal intel 25974 | -5/Factory | Lost 3 allies 25979 | -5/Factory | Reached level 24 25988 | -5/Factory | Learned Extension emergency access door positions 26018 | -5/Factory | Learned Extension terminal intel 26049 | -5/Factory | Learned Armory repair station intel 26082 | -5/Factory | Learned location of 1 exit from Armory 26111 | -5/Factory | Learned Quarantine security intel 26214 | -5/Factory | Entered Upper Caves 26215 | -5/Upper Caves | Identified exit to Upper Caves 26443 | -5/Upper Caves | Attracted the attention of an 0b10 checkpoint 26472 | -5/Upper Caves | Entered an active Warlord outpost 26485 | -5/Upper Caves | Learned location of 1 exit from Research 26485 | -5/Upper Caves | Learned Research security intel 26578 | -5/Upper Caves | Destroyed 9 combat bots 26583 | -5/Upper Caves | Learned Factory terminal intel 26635 | -5/Upper Caves | Acquired the password to a Derelict Tinkerer's latest research 26711 | -5/Upper Caves | Found Prototype Special Weapon 26711 | -5/Upper Caves | Identified Molecular Deconstructor 26799 | -5/Upper Caves | Encountered a Warlord checkpoint 26881 | -5/Upper Caves | Learned Factory terminal intel 26892 | -5/Upper Caves | Attacked by a delusional Derelict stockpiling parts 27176 | -5/Upper Caves | Entered another Upper Caves area 27177 | -5/Upper Caves | Encountered a Warlord checkpoint 27187 | -5/Upper Caves | Discovered exit to Factory (range 8) 27591 | -5/Upper Caves | Learned Factory emergency access door positions 28035 | -5/Upper Caves | Spotted B-75 Beast 28036 | -5/Upper Caves | Destroyed B-75 Beast 28158 | -5/Upper Caves | Discovered new exit (range 7) 28167 | -5/Upper Caves | Identified exit to Zhirov 28547 | -5/Upper Caves | Entered Zhirov 28547 | -5/Zhirov | Discovered new exit (range 3) 28564 | -5/Zhirov | Met Zhirov 28593 | -5/Zhirov | Learned location of Testing (-3) 28593 | -5/Zhirov | Learned location of Command (-1) 28602 | -5/Zhirov | Zhirov requested help retrieving the SGEMP Prototype 28618 | -5/Zhirov | Found Alien Artifact 28618 | -5/Zhirov | Identified Integrated Reactor 28618 | -5/Zhirov | Installed Integrated Reactor, increased core energy generation (+10) 28664 | -5/Zhirov | Found Alien Artifact 28664 | -5/Zhirov | Identified Transdimensional Reconstructor 28664 | -5/Zhirov | Warped through subspace 28729 | -5/Zhirov | Identified exit to Proximity Caves 28733 | -5/Zhirov | Entered Proximity Caves 29019 | -4/Proximity Caves | Learned Research stockpile data 29067 | -4/Proximity Caves | Reached level 25 29072 | -4/Proximity Caves | Upgraded with Utility slot (x1) 29154 | -4/Proximity Caves | Attracted the attention of an 0b10 outpost 29501 | -4/Proximity Caves | Spotted B-86 Titan 29514 | -4/Proximity Caves | Destroyed B-86 Titan 29568 | -4/Proximity Caves | Discovered exit to Factory (range 16) 30253 | -4/Proximity Caves | Entered Factory 30254 | -4/Factory | Identified exit to Extension 30256 | -4/Factory | Loaded intel: 28 terminal locations 30427 | -4/Factory | Destroyed 7 combat bots 30995 | -4/Factory | Reached level 26 31913 | -4/Factory | Discovered new exit (range 22) 32155 | -4/Factory | Discovered new exit (range 16) 32307 | -4/Factory | Found Prototype Processor 32307 | -4/Factory | Identified Exp. Terrain Scan Processor 32494 | -4/Factory | Identified exit to Upper Caves 32549 | -4/Factory | Identified exit to Research 32862 | -4/Factory | Discovered exit to Research (range 24) 32958 | -4/Factory | Joined by Warlord Chimera squad 32990 | -4/Factory | Entered Extension 32991 | -4/Extension | Identified exit to Cetus 32993 | -4/Extension | Loaded intel: 14 terminal locations 33195 | -4/Extension | Rescued a captive Derelict 33273 | -4/Extension | Reached level 27 33328 | -4/Extension | Rescued a captive Derelict 33545 | -4/Extension | Rescued a captive Derelict 33589 | -4/Extension | Rescued a captive Derelict 33640 | -4/Extension | Rescued a captive Derelict 33640 | -4/Extension | Rescued a captive Derelict 33642 | -4/Extension | Spotted B-86 Titan 33655 | -4/Extension | Destroyed B-86 Titan 33661 | -4/Extension | Spotted B-86 Titan 33681 | -4/Extension | Destroyed B-86 Titan 33732 | -4/Extension | Discovered exit to Research (range 8) 33740 | -4/Extension | First assault squad dispatched 33810 | -4/Extension | Build established: Commander-Gunner 33863 | -4/Extension | Lost 3 allies 33881 | -4/Extension | Rescued A7 33915 | -4/Extension | Rescued a captive Derelict 33916 | -4/Extension | Rescued a captive Derelict 34159 | -4/Extension | Rescued a captive Derelict 34159 | -4/Extension | Rescued a captive Derelict 34178 | -4/Extension | Reached level 28 34257 | -4/Extension | Discovered exit to Research (range 12) 34445 | -4/Extension | Entered Cetus 34445 | -4/Cetus | Accompanied by 20 allies (A7) 34450 | -4/Cetus | Acquired a Cetus Manufacturing Module code from A7 34458 | -4/Cetus | Spotted Cetus Guard 34458 | -4/Cetus | Spotted Cetus Guard 34460 | -4/Cetus | Spotted Cetus Guard 34461 | -4/Cetus | Spotted Cetus Guard 34468 | -4/Cetus | Destroyed Cetus Guard 34471 | -4/Cetus | Destroyed Cetus Guard 34474 | -4/Cetus | Destroyed Cetus Guard 34477 | -4/Cetus | Destroyed Cetus Guard 34558 | -4/Cetus | Started Cetus Manufacturing Module 34583 | -4/Cetus | Manufactured an Enhanced Grunt 34608 | -4/Cetus | Manufactured an Enhanced Grunt 34633 | -4/Cetus | Manufactured an Enhanced Grunt 34658 | -4/Cetus | Manufactured an Enhanced Grunt 34683 | -4/Cetus | Manufactured an Enhanced Grunt 34752 | -4/Cetus | Discovered new exit (range 17) 34779 | -4/Cetus | Spotted Cetus Guard 34779 | -4/Cetus | Spotted Cetus Guard 34780 | -4/Cetus | Spotted Cetus Guard 34782 | -4/Cetus | Spotted Cetus Guard 34785 | -4/Cetus | Destroyed Cetus Guard 34788 | -4/Cetus | Destroyed Cetus Guard 34791 | -4/Cetus | Destroyed Cetus Guard 34797 | -4/Cetus | Destroyed Cetus Guard 34806 | -4/Cetus | Discovered exit to Research (range 17) 34813 | -4/Cetus | Met Revision 17 34848 | -4/Cetus | Identified exit to Archives 35114 | -4/Cetus | Entered Archives 35114 | -4/Archives | Accompanied by 20 allies (A7) 35152 | -4/Archives | Discovered new exit (range 22) 35154 | -4/Archives | Discovered exit to Research (range 14) 35174 | -4/Archives | Discovered new exit (range 17) 35190 | -4/Archives | Identified exit to Hub_04(d) 35404 | -4/Archives | Entered Hub_04(d) 35404 | -4/Hub_04(d) | Accompanied by 17 allies 35488 | -4/Hub_04(d) | Discovered exit to Research (range 4) 35500 | -4/Hub_04(d) | Garrison activated, responded to threat 35620 | -4/Hub_04(d) | Discovered exit to Research (range 19) 35886 | -4/Hub_04(d) | Build established: Hacker-Gunner 35916 | -4/Hub_04(d) | Local machine network offline 35945 | -4/Hub_04(d) | Discovered exit to Research (range 18) 35969 | -4/Hub_04(d) | Discovered exit to Research (range 18) 36072 | -4/Hub_04(d) | Network Hub disabled 36072 | -4/Hub_04(d) | Network Hub disabled 36154 | -4/Hub_04(d) | First assault squad dispatched 36207 | -4/Hub_04(d) | Destroyed 7 combat bots 36269 | -4/Hub_04(d) | Spotted B-86 Titan 36275 | -4/Hub_04(d) | Destroyed B-86 Titan 36326 | -4/Hub_04(d) | Network Hub disabled 36326 | -4/Hub_04(d) | Reached level 29 36326 | -4/Hub_04(d) | Network Hub disabled 36326 | -4/Hub_04(d) | Garrison activated, responded to threat 36369 | -4/Hub_04(d) | System corruption reached 10% 36383 | -4/Hub_04(d) | Upgraded with Utility slot (x1) 36394 | -4/Hub_04(d) | Spotted Lightning 36396 | -4/Hub_04(d) | Spotted Lightning 36397 | -4/Hub_04(d) | Spotted Lightning 36398 | -4/Hub_04(d) | Spotted Lightning 36400 | -4/Hub_04(d) | Spotted Lightning 36402 | -4/Hub_04(d) | Core integrity fell below 50% 36402 | -4/Hub_04(d) | Spotted Lightning 36405 | -4/Hub_04(d) | Core integrity fell below 20% 36407 | -4/Hub_04(d) | Destroyed by X-77 Beamer with Gatling Laser Last Messages --------------- 36400_ I-47 Archangel distress signal jammed. 36401_ Penetrated by EMDS Slug. 36401_ I-47 Archangel distress signal jammed. 36402_ Penetrated by EMDS Slug. 36402_ M-36 Artificer repairs I-47 Archangel. 36402_ I-47 Archangel distress signal jammed. 36403_ Penetrated by EMDS Slug. 36403_ I-47 Archangel distress signal jammed. 36404_ ALERT: Unidentified disturbance in Zone 9J, multiple assault carriers dispatched. 36404_ EMDS Slug penetrates Wall. 36404_ Penetrated by EMDS Slug. 36404_ I-47 Archangel distress signal jammed. 36405_ Penetrated by EMDS Slug. 36405_ I-47 Archangel distress signal jammed. 36406_ Penetrated by EMDS Slug. 36406_ I-47 Archangel distress signal jammed. 36407_ Adv. System Restoration Module purges 1% system corruption (22%). 36407_ Penetrated by EMDS Slug. 36407_ I-47 Archangel distress signal jammed. Map ----- +----------------------------------------------------+ | | | | | | | | | | | | | | | | | | | | | | | | | | | | | | | | | #?##############;###########?#########?###? | | #?#?## ## # ## | | ###### h ; # | | ###### !i h ;;;;;;;;;;;;; # | | " m h ;; ; # | | # h ;; ; # | | # h ;; ; # | | " i h ;; ; # | | ######################;;; ;;; ; # | | #### ## @ ; # | | # ; ; # | | """" ;;;; ; # | | "" ; ; ; ; #? | | "" ; # ; ; # | | "" # # ; ; # | | "" ;# ##;;;;;;;;;;;;;"## | | """"" "# =## = ## | | "#!%##=/ "# | | " ; "#[=#"= "# | | """" ; /= "# #"g "# | | # "" ; "# #"!* # | | *%="" = ; " "";x;;;;;;;"""""# | | "" " + g x # # | | # """"""""""""" # ############ | | ## # """"" # "w " ##;"########?### | | "# # "# ###########?#?###?# | | "###### # #??###?#?#?# | | ####### ? ?#######??##? | | ####### # # ###?####? | | ####### # ?" ## ####?##?# | | ] ####### # " ## ###?###?? | | ############# " " " ##?######### | | ## # ## ######### | | ! ## " """ # "" " " ## ######### | +----------------------------------------------------+ Best States ------------- Heat Dissipation 168 Energy Generation 59 Energy Capacity 1840 Matter Stores 300 Matter Capacity 300 Sight Range 17 Robot Scan Range 18 Terrain Scan Range 24 Terrain Scan Density 310 Jamming Range 14 Base Temperature (-) 150 EM Shielding 2 Resistance: KI 30 Power Shielding 90 Weapon Cycling 20 Evasion (%) 44 Targeting Accuracy 16 Armor Integrity Analysis 30 Recoil Reduction 4 Energy Filtering 30 Particle Charging 25 Offensive Hacking 15 Defensive Hacking 24 Trap Extractor Capacity 8 Item Schematics ----------------- System Restoration Module | -8/Materials | Scanalyzed Enh. Optical Array | -6/Zion | Archive Imp. Focal Shield | -6/Zion | Archive Adv. Hacking Suite | -6/Zion | Archive Adv. Terrain Scanner | -6/Zion | Archive Imp. Recalibrator | -6/Zion | Archive Imp. Proton Missile Launcher | -6/Zion | Archive HERF Cannon | -6/Zion | Archive Adv. Hardlight Generator | -6/Zion | Archive Imp. Hardlight Generator | -6/Zion | Archive Imp. Shock Absorption System | -6/Zion | Archive Imp. System Shield | -6/Zion | Archive Imp. Plasma Cutter | -6/Zion | Archive Drone Bay | -6/Zion | Archive Imp. Arc Projector | -6/Zion | Archive Imp. Medium Treads | -6/Zion | Archive Assault Drone Bay | -5/Zhirov | Free Exp. Heat Sink | -5/Zhirov | Free Exp. Optical Array | -5/Zhirov | Free Imp. Arc Thrower | -5/Zhirov | Free Robot Schematics ------------------ M-14 Sweeper | -6/Zion | Archive S-27 Virus | -6/Zion | Archive M-22 Extractor | -6/Zion | Archive C-57 Dissector | -6/Zion | Archive Fabricated ------------ System Restoration Module | x2 | -5/Factory Repaired ---------- Nothing Studied --------- Arm. Treads | -8/Materials | Hacked Hvy. Laser | -6/Factory | Hacked Lgt. Angular Momentum Engine | -6/Factory | Hacked Med. Treads | -6/Factory | Hacked Thermic Laser | -5/Factory | Hacked Com. Wheel | -5/Factory | Hacked Alien Tech Used ----------------- Integrated Reactor Transdimensional Reconstructor Achievements -------------- Giant Slayer Gunslinger I Like You, Cogmind No Room For Error Out Of My Way Pyromaniac Revising The Future Squad Leader Challenges ------------ None RPGLIKE | -11 -10 -10 -9 -9 -9 -8 -8 -7 -7 -6 -6 -6 -6 -5 -5 -5 -5 -5 -5 -5 -4 -4 -4 -4 -4 -4 --------- Run | Yrd Mat Min Mat Min Exi Min Mat Fac DSF Fac Low Low Zio Pro Fac Was Fac Upp Upp Zhi Pro Fac Ext Cet Arc Hub Levels Raised 28 | . 2 1 6 . . 1 3 1 . 4 . 1 . 1 1 . 2 . . . 1 1 2 . . 1 XP Earned 45050 | 3000 3755 1975 8014 442 117 1974 3586 1297 1252 5080 978 204 152 1575 2212 67 1872 334 318 105 1050 2245 1958 292 141 1055 XP Spent 44975 | 2940 2600 1950 8280 . . 2000 4510 . 600 7100 . 1300 . . 3200 . 950 . . . 3500 1360 800 . . 3885 Upgrades 73 | 10 5 11 13 . . 1 6 . 1 6 . 8 . . 1 . 2 . . . 1 4 2 . . 2 Power Slot 2 | . 1 . 1 . . . . . . . . . . . . . . . . . . . . . . . Propulsion Slot 3 | 1 . . 1 . . . 1 . . . . . . . . . . . . . . . . . . . Utility Slot 12 | 1 1 1 2 . . 1 1 . . 2 . . . . 1 . . . . . 1 . . . . 1 Weapon Slot 4 | 2 1 . 1 . . . . . . . . . . . . . . . . . . . . . . . Core Integrity 7 | . . 6 . . . . . . . . . . . . . . . . . . . . . . . 1 Heat Dissipation 19 | 2 2 3 4 . . . 2 . . . . . . . . . . . . . . 4 2 . . . Mass Support 1 | . . 1 . . . . . . . . . . . . . . . . . . . . . . . . Inventory Capacity 3 | 1 . . . . . . 1 . . . . . . . . . 1 . . . . . . . . . Sight Range 1 | . . . . . . . . . . 1 . . . . . . . . . . . . . . . . Sensor Range 9 | . . . . . . . 1 . . . . 8 . . . . . . . . . . . . . . Terrain Scan Density 3 | 3 . . . . . . . . . . . . . . . . . . . . . . . . . . Ranged Accuracy 3 | . . . 2 . . . . . 1 . . . . . . . . . . . . . . . . . Hack Attack % 3 | . . . 1 . . . . . . 2 . . . . . . . . . . . . . . . . Hack Defense % 2 | . . . 1 . . . . . . 1 . . . . . . . . . . . . . . . . TH Damage % 1 | . . . . . . . . . . . . . . . . . 1 . . . . . . . . . Protomatter Created 8377 | . 212 110 526 30 . 157 422 . 378 526 377 28 . 297 725 256 934 154 401 . 270 995 729 112 80 658 Integrity Restored 8815 | . 409 108 1056 90 . 381 698 . 379 670 542 38 . 256 221 . 917 188 294 . 375 660 699 153 93 588 Core 6914 | . 288 108 1056 90 . 381 397 . 333 513 431 31 . 200 181 . 632 150 226 . 301 457 550 153 40 396 Parts 1901 | . 121 . . . . . 301 . 46 157 111 7 . 56 40 . 285 38 68 . 74 203 149 . 53 192 Protomatter Decayed 5727 | . 36 74 108 . . . 181 . 247 201 191 14 . 253 581 84 875 89 168 . 138 601 943 . 181 762 Game ------ Seed FrostDataReplicator Manual? 0 Play Time 08:02:49 Cumulative 143.6 hours Start 2025.11.21 @ 17:05:42 End 2025.11.21 @ 21:35:07 Sessions 1 Manual Loads 0 Difficulty Rogue Special Mode Winter2019/RPGLIKE Game No. 94 Rogue 94 Adventurer 0 Explorer 0 Win Type - Total 0 Types 0/0/0/0/0/0/0/0/0/0 Lore% 66 Gallery% 46 Achievement% 47 Wizard Run 0 Options --------- Layout 0 ASCII 0 Keyboard 0 Movement Mouse Keybinds 0 Fullscreen 2 Font 24/Smallcaps Map View 76x50 Zoom Use 0% Tactical HUD 1 Map Filters NONE Filters NONE Steam 1 RUN: a43d88d4-be1b-4184-a5f1-af1f3017adcd